fUSD/lending_fUSD_20251115
["ID","MTS","AMOUNT","RATE_DAILY","PERIOD"]
[394044850,1763221832415,-300.0,0.00016643,2]
[394044851,1763221832424,-153.48334863,0.00016646,2]
[394044852,1763221832433,-5538.04086621,0.00016646,2]
[394044853,1763221832442,-167.64288442,0.00016646,2]
[394044854,1763221832451,-151.0,0.0001671,2]
[394044855,1763221832460,-151.0,0.0001671,2]
[394044856,1763221832469,-678.911,0.00016719,2]
[394044857,1763221832479,-550.0,0.00016719,2]
[394044858,1763221832488,-6777.7,0.00016746,2]
[394044859,1763221832497,-500.0,0.00016773,2]
[394044860,1763221832506,-159.94,0.00016794,2]
[394044861,1763221832515,-13946.46932713,0.00016986,2]
[394044862,1763221832526,-1112.97067287,0.00016986,2]
[394044863,1763221832536,-250.0,0.00017,2]
[394044864,1763221832545,-1584.83412721,0.00017295,2]
[394044865,1763221832556,-927.16587279,0.00017295,2]
[394044866,1763221832565,-155.35892563,0.00017359,2]
[394044868,1763221832662,-454.64107437,0.00017359,2]
[394044869,1763221832674,-400.0,0.000175,6]
[394044870,1763221832683,-500.0,0.00017507,2]
[394044871,1763221832692,-5538.04086621,0.00017562,2]
[394044872,1763221832702,-800.0,0.000176,6]
[394044873,1763221832711,-1200.0,0.000177,6]
[394044874,1763221832721,-2512.0,0.00017709,2]
[394044875,1763221832730,-222.2113773,0.00017729,2]
[394044876,1763221832740,-2512.0,0.00017744,2]
[394044877,1763221832749,-166.66,0.0001775,2]
[394044878,1763221832765,-1700.0,0.000178,6]
[394044879,1763221832779,-1218.75323653,0.00017825,2]
[394044880,1763221832791,-626.78399393,0.00017825,2]
[394044881,1763221832833,-388.2375,0.00017825,2]
[394044882,1763221832844,-278.22526954,0.00017825,2]
[394044883,1763221832854,-229.95458142,0.000179,2]
[394044884,1763221832863,-276.80559916,0.000179,6]
[394044885,1763221832875,-1823.19440084,0.000179,6]
[394044886,1763221832884,-3099.58681184,0.000179,2]
[394044887,1763221832896,-1831.84742485,0.000179,2]
[394044888,1763221838181,-1942.43346034,0.000179,2]
[394044889,1763221838192,-500.0,0.00017973,2]
[394044890,1763221838201,-500.0,0.00017973,2]
[394044891,1763221838211,-500.0,0.00017973,2]
[394044892,1763221838220,-11096.41047809,0.00017987,2]
[394044893,1763221838231,-2371.96771387,0.00017987,2]
[394044917,1763221840417,-1446.68196806,0.00017987,2]
[394044918,1763221840429,-1704.13180317,0.00017987,2]
[394044919,1763221840440,-502.72739949,0.00017987,2]
[394044920,1763221840451,-1880.97276437,0.00017987,2]
[394044921,1763221840462,-1212.12124319,0.00017987,2]
[394044922,1763221840494,-318.01194199,0.00017987,2]
[394044923,1763221840506,-1528.70657414,0.00017987,2]
[394044924,1763221840517,-24104.6103854,0.00017987,2]
[394044925,1763221840529,-522.4,0.00017987,2]
[394044926,1763221840554,-5284.26956182,0.00017987,2]
[394044942,1763221843366,-2563.9802088,0.00017987,2]
[394044943,1763221843378,-817.44417486,0.00017987,2]
[394044944,1763221843389,-1012.97035628,0.00017987,2]
[394044945,1763221843582,-635.6914335,0.00017987,2]
[394044946,1763221843593,-2763.69622058,0.00017987,2]
[394044948,1763221843711,-503.37591902,0.00017987,2]
[394044968,1763221934754,1000.0,0.00042,120]
[394044969,1763221934814,1000.0,0.00042,120]
[394044970,1763221935288,500.0,0.00042,120]
[394044971,1763221948105,195.41167154,0.000415,120]
[394044972,1763221970944,1011.16196925,0.000415,120]
[394044973,1763221981204,173.27934102,0.000415,120]
[394044974,1763221991301,167.02163323,0.000415,120]
[394044975,1763222001463,190.555257,0.00041097,120]
[394044976,1763222042936,5888.0,0.00042,120]
[394044977,1763222045790,5888.0,0.00042,120]
[394044978,1763222048578,936.0,0.00042,120]
[394044979,1763222085533,663.39,8.327e-05,2]
[394044980,1763222085764,663.39,8.766e-05,2]
[394044981,1763222085988,663.39,9.204e-05,2]
[394044982,1763222086178,663.39,9.642e-05,2]
[394044983,1763222086386,663.39,0.00010081,2]
[394044984,1763222086588,663.39,0.00010519,2]
[394044985,1763222086786,663.39,0.00010957,2]
[394044986,1763222086990,663.39,0.00011395,2]
[394044987,1763222087202,663.39,0.00011834,2]
[394044988,1763222087419,663.39,0.00012272,2]
[394044989,1763222087631,663.39,0.0001271,2]
[394044990,1763222087840,663.39,0.00013148,2]
[394044991,1763222088039,663.39,0.00013587,2]
[394044992,1763222088250,663.39,0.00014025,2]
[394044993,1763222088466,663.39,0.00014463,2]
[394044994,1763222088705,49.16,0.00014902,2]
[394044995,1763222088733,614.23,0.00014902,2]
[394044996,1763222089028,663.39,0.0001534,2]
[394044997,1763222139448,3000.0,0.00042,120]
[394044998,1763222251948,1500.0,0.00042,120]
[394044999,1763222290634,808.9295754,0.000415,120]
[394045000,1763222306239,167.02163324,0.000415,120]
[394045001,1763222330345,1500.0,0.00042,120]
[394045002,1763222385778,1487.32029191,0.00042,120]
[394045004,1763222405734,298.52414201,0.00015678,2]
[394045005,1763222465586,151.0,0.00015678,2]
[394045006,1763222465742,233.31208531,0.00015678,2]
[394045007,1763222468189,163.85,0.00012813,2]
[394045008,1763222605966,647.14366032,0.000415,120]
[394045009,1763222620015,167.02163323,0.000415,120]
[394045027,1763222721516,349.96812796,0.00015678,2]
[394045028,1763222721549,151.0,0.00015678,2]
[394045029,1763222722412,151.0,0.00015678,2]
[394045030,1763222722570,250.48406399,0.00015678,2]
[394045033,1763222766337,250.48406398,0.00015678,2]
[394045034,1763222781045,151.0,0.00015678,2]
[394045035,1763222781666,151.0,0.00015678,2]
[394045036,1763222782280,151.0,0.00015678,2]
[394045037,1763222782902,151.0,0.00015678,2]
[394045038,1763222783513,151.0,0.00015678,2]
[394045039,1763222785236,151.0,0.00015678,2]
[394045040,1763222786335,151.0,0.00015678,2]
[394045041,1763222786977,151.0,0.00015678,2]
[394045042,1763222787770,151.0,0.00015678,2]
[394045043,1763222788238,151.0,0.00015678,2]
[394045044,1763222788521,-415.272,0.00015678,2]
[394045045,1763222788554,-241.28304479,0.00015678,2]
[394045046,1763222788583,-300.0,0.00015681,2]
[394045047,1763222788898,151.0,0.00015678,2]
[394045048,1763222789513,151.0,0.00015678,2]
[394045049,1763222790123,151.0,0.00015678,2]
[394045050,1763222790740,151.0,0.00015678,2]
[394045051,1763222791680,151.0,0.00015678,2]
[394045052,1763222792103,151.0,0.00015678,2]
[394045053,1763222792788,151.0,0.00015678,2]
[394045054,1763222793468,151.0,0.00015678,2]
[394045055,1763222794112,151.0,0.00015678,2]
[394045056,1763222794952,151.0,0.00015678,2]
[394045057,1763222845932,151.0,0.00015681,2]
[394045058,1763222846993,258.80243225,0.00015681,2]
[394045061,1763222886830,8400.0151765,0.00042,120]
[394045062,1763222889312,151.0,0.00015684,2]
[394045063,1763222889921,151.0,0.00015684,2]
[394045064,1763222890844,151.0,0.00015684,2]
[394045065,1763222891526,151.0,0.00015684,2]
[394045066,1763222925333,665.626646,0.00015605,2]
[394045096,1763223031225,3372.14,0.00015571,2]
[394045098,1763223031447,-830.27707888,0.00015684,2]
[394045099,1763223031492,-272.04562613,0.00015684,2]
[394045100,1763223031502,-304.17315594,0.00015687,2]
[394045101,1763223031512,-663.39,0.00015778,2]
[394045102,1763223031522,-159.43,0.00015917,2]
[394045103,1763223031531,-250.0,0.00016017,2]
[394045104,1763223031540,-1308.67,0.00016095,2]
[394045105,1763223031549,-150.0,0.00016095,2]
[394045106,1763223031559,-604.78848689,0.00016216,2]
[394045107,1763223031633,-58.60151311,0.00016216,2]
[394045108,1763223031643,-300.0,0.00016262,2]
[394045109,1763223031653,-1200.0,0.00016262,2]
[394045110,1763223031663,-1200.0,0.00016263,2]
[394045111,1763223031672,-300.0,0.00016263,2]
[394045112,1763223031682,-1000.0,0.00016266,2]
[394045113,1763223031691,-169.09487761,0.00016338,2]
[394045114,1763223031700,-550.0,0.00016419,2]
[394045115,1763223031710,-170828.52659062,0.0001642,2]
[394045116,1763223031721,-11793.00916227,0.0001642,2]
[394045117,1763223031732,-1200.0,0.0001642,2]
[394045121,1763223037495,-265.23414281,0.00016419,2]
[394045122,1763223037504,-500.0,0.00016419,2]
[394045123,1763223037514,-500.0,0.00016419,2]
[394045124,1763223037524,-194.56255161,0.00016419,2]
[394045125,1763223037533,-193.31002887,0.00016419,2]
[394045126,1763223037543,-500.0,0.00016419,2]
[394045127,1763223037553,-500.0,0.00016419,2]
[394045128,1763223037562,-500.0,0.00016419,2]
[394045129,1763223037572,-521.49145163,0.00016419,2]
[394045130,1763223037582,-500.0,0.00016419,2]
[394045131,1763223037591,-500.0,0.00016419,2]
[394045132,1763223037600,-500.0,0.00016419,2]
[394045133,1763223037609,-500.0,0.00016419,2]
[394045134,1763223037618,-376.58349246,0.00016419,2]
[394045135,1763223037628,-500.0,0.00016419,2]
[394045136,1763223037638,-500.0,0.00016419,2]
[394045137,1763223037647,-500.0,0.00016419,2]
[394045138,1763223037656,-500.0,0.00016419,2]
[394045139,1763223037665,-500.0,0.00016419,2]
[394045140,1763223037675,-500.0,0.00016419,2]
[394045141,1763223037685,-500.0,0.00016419,2]
[394045142,1763223037694,-500.0,0.00016419,2]
[394045143,1763223037703,-500.0,0.00016419,2]
[394045144,1763223037712,-500.0,0.00016419,2]
[394045145,1763223037722,-500.0,0.00016419,2]
[394045146,1763223037733,-500.0,0.00016419,2]
[394045147,1763223037744,-500.0,0.00016419,2]
[394045148,1763223037755,-500.0,0.00016419,2]
[394045149,1763223037765,-500.0,0.00016419,2]
[394045150,1763223037775,-500.0,0.00016419,2]
[394045151,1763223037785,-500.0,0.00016419,2]
[394045152,1763223037796,-500.0,0.00016419,2]
[394045153,1763223037806,-500.0,0.00016419,2]
[394045154,1763223037817,-500.0,0.00016419,2]
[394045155,1763223037828,-500.0,0.00016419,2]
[394045156,1763223037838,-500.0,0.00016419,2]
[394045157,1763223037848,-500.0,0.00016419,2]
[394045158,1763223037858,-500.0,0.00016419,2]
[394045159,1763223037868,-500.0,0.00016419,2]
[394045160,1763223037879,-43810.42517222,0.0001642,2]
[394045161,1763223037892,-451331.99589097,0.0001642,2]
[394045162,1763223037904,-81036.04318392,0.0001642,2]
[394045163,1763223037914,-500.0,0.00016438,2]
[394045164,1763223037924,-500.0,0.00016438,2]
[394045165,1763223037934,-500.0,0.00016438,2]
[394045166,1763223037944,-500.0,0.00016438,2]
[394045167,1763223037954,-500.0,0.00016438,2]
[394045168,1763223037964,-456.5537776,0.00016438,2]
[394045169,1763223037974,-500.0,0.00016438,2]
[394045170,1763223037984,-500.0,0.00016438,2]
[394045171,1763223037996,-280.66010487,0.00016438,2]
[394045172,1763223038006,-355.05,0.00016438,2]
[394045173,1763223038016,-163.52,0.0001644,2]
[394045174,1763223038026,-500.0,0.00016473,2]
[394045175,1763223038036,-500.0,0.00016473,2]
[394045176,1763223038047,-500.0,0.00016473,2]
[394045177,1763223038056,-500.0,0.00016473,2]
[394045179,1763223038066,-500.0,0.00016473,2]
[394045181,1763223038076,-500.0,0.00016473,2]
[394045182,1763223038093,-500.0,0.00016473,2]
[394045184,1763223038103,-500.0,0.00016493,2]
[394045186,1763223038114,-300.0,0.00016519,2]
[394045187,1763223038125,-1000.0,0.0001652,2]
[394045188,1763223038134,-4075.8433,0.0001652,2]
[394045189,1763223038144,-30828.341,0.0001652,2]
[394045190,1763223038155,-2500.0,0.0001652,2]
[394045191,1763223038167,-525.09741535,0.0001652,2]
[394045192,1763223038177,-234.7044,0.0001652,2]
[394045193,1763223038187,-150.0,0.00016538,2]
[394045194,1763223038196,-7309.20450183,0.00016555,2]
[394045195,1763223038207,-10614.63464964,0.00016555,2]
[394045196,1763223038216,-2679.1775,0.00016603,2]
[394045197,1763223038227,-300.0,0.00016616,2]
[394045198,1763223038236,-963.94,0.00016618,2]
[394045199,1763223038248,-500.0,0.00016619,2]
[394045200,1763223038258,-500.0,0.00016619,2]
[394045201,1763223038267,-263.19217509,0.00016619,2]
[394045202,1763223038277,-500.0,0.00016619,2]
[394045203,1763223038288,-10039.5734,0.0001662,2]
[394045204,1763223038297,-663.39,0.00016655,2]
[394045205,1763223038307,-500.0,0.00016673,2]
[394045206,1763223038317,-500.0,0.00016673,2]
[394045207,1763223038327,-500.0,0.00016673,2]
[394045208,1763223038337,-504.64460958,0.00016673,2]
[394045209,1763223038347,-500.0,0.00016673,2]
[394045210,1763223038356,-313.75294852,0.00016673,2]
[394045211,1763223038366,-429.6404619,0.00016673,2]
[394045212,1763223038375,-500.0,0.00016673,2]
[394045213,1763223038384,-500.0,0.00016673,2]
[394045214,1763223038394,-12420.3,0.00016699,2]
[394045215,1763223038404,-159.43,0.00016801,2]
[394045216,1763223038414,-963.94,0.00016892,2]
[394045217,1763223038424,-600.0,0.000169,2]
[394045218,1763223038434,-244.86,0.00016998,2]
[394045219,1763223038444,-250.0,0.00017,2]
[394045220,1763223038453,-420.27752062,0.00017021,2]
[394045221,1763223038463,-1000.0,0.00017021,2]
[394045222,1763223038477,-1000.0,0.00017021,2]
[394045223,1763223038487,-1000.0,0.00017021,2]
[394045224,1763223038497,-1000.0,0.00017021,2]
[394045225,1763223038507,-500.0,0.00017151,2]
[394045226,1763223038517,-963.94,0.00017166,2]
[394045227,1763223038528,-1000.0,0.00017221,2]
[394045228,1763223038538,-500.0,0.00017221,2]
[394045229,1763223038548,-1000.0,0.00017221,2]
[394045230,1763223038558,-500.0,0.00017221,2]
[394045231,1763223038568,-1000.0,0.00017221,2]
[394045232,1763223038577,-355.2,0.00017245,2]
[394045233,1763223038587,-2500.0,0.00017246,2]
[394045234,1763223038596,-250.0,0.00017246,2]
[394045235,1763223038606,-195.0,0.00017246,2]
[394045236,1763223038615,-300.0,0.00017246,2]
[394045237,1763223038625,-300.0,0.00017246,2]
[394045238,1763223038635,-250.0,0.00017253,2]
[394045239,1763223038645,-1397.67729499,0.00017253,2]
[394045240,1763223038658,-300.0,0.00017253,2]
[394045241,1763223038900,-300.57,0.00017256,2]
[394045242,1763223038924,-963.94,0.0001744,2]
[394045243,1763223038934,-7309.20450178,0.0001746,2]
[394045244,1763223038944,-10614.63464959,0.0001746,2]
[394045245,1763223038954,-267.86529,0.0001746,2]
[394045246,1763223038964,-152.713919,0.0001746,2]
[394045247,1763223038976,-151.0,0.0001746,2]
[394045248,1763223038986,-151.0,0.0001746,2]
[394045249,1763223038996,-151.0,0.0001746,2]
[394045250,1763223039006,-157.243036,0.0001746,2]
[394045251,1763223039016,-151.0,0.0001746,2]
[394045252,1763223039026,-500.0,0.000175,6]
[394045253,1763223039036,-935.0,0.00017535,2]
[394045254,1763223039046,-5530.0,0.00017554,2]
[394045255,1763223039056,-243.37395338,0.00017568,2]
[394045256,1763223039066,-1500.0,0.00017568,2]
[394045257,1763223039076,-500.0,0.00017568,2]
[394045258,1763223039088,-389.21155154,0.00017568,2]
[394045259,1763223039098,-5530.0,0.00017569,2]
[394045260,1763223039108,-1000.0,0.000176,6]
[394045261,1763223039117,-222.2113773,0.00017633,2]
[394045262,1763223039128,-159.43,0.00017685,2]
[394045263,1763223039137,-1463.53329569,0.000177,6]
[394045264,1763223039149,-36.46670431,0.000177,6]
[394045265,1763223039158,-1856.0,0.000177,2]
[394045266,1763223039170,-963.94,0.00017714,2]
[394045267,1763223039183,-1725.16456899,0.0001772,2]
[394045268,1763223039193,-300.0,0.00017741,2]
[394045269,1763223039202,-300.0,0.00017758,2]
[394045270,1763223039212,-256.42545363,0.00017758,2]
[394045271,1763223039222,-500.0,0.00017758,2]
[394045272,1763223039232,-131239.988124,0.00017759,2]
[394045273,1763223039242,-18340.5939149,0.00017759,2]
[394045274,1763223039254,-1391.4806276,0.00017759,2]
[394045275,1763223039264,-166.935786,0.00017759,2]
[394045276,1763223039274,-151.0,0.00017759,2]
[394045277,1763223039285,-151.0,0.00017759,2]
[394045278,1763223039295,-151.0,0.00017759,2]
[394045279,1763223039305,-151.0,0.00017759,2]
[394045280,1763223039314,-151.0,0.00017759,2]
[394045282,1763223039324,-1500.0,0.00017768,2]
[394045283,1763223039333,-326.66742499,0.00017768,2]
[394045284,1763223039343,-161.2058566,0.00017773,2]
[394045285,1763223039354,-504.47287269,0.00017773,2]
[394045286,1763223039364,-500.0,0.00017773,2]
[394045287,1763223039382,-500.0,0.00017773,2]
[394045288,1763223039393,-500.0,0.00017773,2]
[394045289,1763223039403,-500.0,0.00017773,2]
[394045290,1763223039413,-500.0,0.00017773,2]
[394045291,1763223039423,-500.0,0.00017773,2]
[394045292,1763223039433,-503.88116874,0.00017773,2]
[394045293,1763223039443,-500.0,0.00017773,2]
[394045294,1763223039453,-500.0,0.00017773,2]
[394045295,1763223039463,-500.0,0.00017773,2]
[394045296,1763223039472,-420.0,0.00017775,2]
[394045297,1763223039481,-1575.0,0.00017776,2]
[394045298,1763223039491,-420.0,0.00017776,2]
[394045299,1763223039503,-2000.0,0.000178,6]
[394045300,1763223039513,-818.3244929,0.00017859,2]
[394045301,1763223039523,-3874.748741,0.00017859,2]
[394045302,1763223039532,-5530.0,0.00017861,2]
[394045303,1763223039542,-1680.0,0.00017864,2]
[394045304,1763223039552,-5530.0,0.00017896,2]
[394045305,1763223039561,-150.0,0.00017899,6]
[394045306,1763223039571,-541.50629494,0.000179,2]
[394045307,1763223039590,-2500.0,0.000179,6]
[394045308,1763223039601,-181.32753643,0.000179,3]
[394045309,1763223039610,-5530.0,0.00017968,2]
[394045310,1763223039620,-500.0,0.00017973,2]
[394045311,1763223039630,-503.79066701,0.00017973,2]
[394045312,1763223039639,-150.0,0.00017986,2]
[394045313,1763223039649,-1176.151278,0.00017987,2]
[394045314,1763223039659,-963.94,0.00017988,2]
[394045315,1763223039668,-199.85914556,0.0001799,2]
[394045316,1763223039678,-163.52,0.0001799,2]
[394045317,1763223039687,-500.0,0.00017999,2]
[394045318,1763223039697,-500.0,0.00017999,2]
[394045319,1763223039707,-500.0,0.00017999,2]
[394045320,1763223039717,-500.0,0.00017999,2]
[394045321,1763223039727,-500.0,0.00017999,2]
[394045322,1763223039736,-500.0,0.00017999,2]
[394045323,1763223039747,-500.0,0.00017999,2]
[394045324,1763223039756,-500.0,0.00017999,2]
[394045325,1763223039765,-500.0,0.00017999,2]
[394045326,1763223039775,-500.0,0.00017999,2]
[394045327,1763223039784,-300.0,0.00017999,2]
[394045328,1763223039794,-907.0,0.00018,2]
[394045329,1763223039804,-7158.85221148,0.00018,2]
[394045330,1763223039818,-62599.2654767,0.00018,2]
[394045331,1763223039830,-24886.92929586,0.00018,2]
[394045332,1763223039843,-2388.13820631,0.00018,2]
[394045333,1763223039854,-1183.27617603,0.00018,2]
[394045334,1763223039866,-427.97828468,0.00018,2]
[394045337,1763223039991,-151.0,0.0001746,2]
[394045339,1763223040003,-151.0,0.00017759,2]
[394045341,1763223040013,-11700.81432608,0.00018,2]
[394045343,1763223040040,-2078.0,0.00018,2]
[394045344,1763223040052,-2207.91792722,0.00018,2]
[394045367,1763223045626,-310.18252583,0.00016338,2]
[394045368,1763223045636,-151.0,0.0001746,2]
[394045369,1763223045646,-215.413898,0.00017759,2]
[394045370,1763223045658,-8923.40357617,0.00018,2]
[394045371,1763223045670,-25321.33018773,0.00018,2]
[394045372,1763223045681,-438.09766,0.00018,2]
[394045373,1763223045693,-280.08750161,0.00018,2]
[394045381,1763223117390,500.0,0.00041332,30]
[394045384,1763223300112,678.69,0.00013699,2]
[394045386,1763223442071,-166.66,0.00016329,2]
[394045387,1763223442098,-250.0,0.00016351,2]
[394045388,1763223442127,-5882.03116409,0.00016373,2]
[394045389,1763223442153,-271.40971011,0.00016373,2]
[394045390,1763223442179,-9566.58635989,0.00016373,2]
[394045391,1763223442206,-250.0,0.00016391,2]
[394045392,1763223442231,-1200.0,0.00016417,2]
[394045393,1763223442259,-500.0,0.00016419,2]
[394045394,1763223442291,-500.0,0.00016419,2]
[394045395,1763223442320,-500.0,0.00016419,2]
[394045396,1763223442348,-500.0,0.00016419,2]
[394045397,1763223442380,-500.0,0.00016419,2]
[394045398,1763223442410,-500.0,0.00016419,2]
[394045399,1763223442438,-500.0,0.00016419,2]
[394045400,1763223442468,-500.0,0.00016419,2]
[394045401,1763223442497,-500.0,0.00016419,2]
[394045402,1763223442525,-500.0,0.00016419,2]
[394045403,1763223442553,-500.0,0.00016419,2]
[394045404,1763223442581,-500.0,0.00016419,2]
[394045405,1763223442609,-500.0,0.00016419,2]
[394045406,1763223442639,-500.0,0.00016419,2]
[394045407,1763223442668,-500.0,0.00016419,2]
[394045408,1763223442696,-500.0,0.00016419,2]
[394045409,1763223442724,-500.0,0.00016419,2]
[394045410,1763223442752,-500.0,0.00016419,2]
[394045411,1763223442781,-500.0,0.00016419,2]
[394045412,1763223442808,-500.0,0.00016419,2]
[394045413,1763223442836,-500.0,0.00016419,2]
[394045414,1763223442866,-500.0,0.00016419,2]
[394045415,1763223442896,-500.0,0.00016419,2]
[394045416,1763223442927,-246.62530935,0.00016419,2]
[394045417,1763223442955,-500.0,0.00016419,2]
[394045418,1763223442983,-185.66389997,0.00016419,2]
[394045419,1763223443010,-438.65216667,0.00016419,2]
[394045420,1763223443036,-300.0,0.00016419,2]
[394045421,1763223443062,-550.0,0.00016419,2]
[394045422,1763223443089,-300.0,0.00016419,2]
[394045423,1763223443116,-500.0,0.00016419,2]
[394045424,1763223443142,-500.0,0.00016419,2]
[394045425,1763223443169,-27792.37138992,0.0001642,2]
[394045555,1763223517349,999.0,0.00016623,3]
[394045556,1763223551825,572.61,0.00041333,120]
[394045557,1763223552074,572.61,0.00041333,120]
[394045558,1763223552324,572.61,0.00041333,120]
[394045559,1763223552605,572.61,0.00041333,120]
[394045560,1763223552886,572.61,0.00041333,120]
[394045561,1763223553156,572.61,0.00041333,120]
[394045562,1763223553426,572.61,0.00041333,120]
[394045563,1763223553679,572.61,0.00041333,120]
[394045564,1763223553916,572.61,0.00041333,120]
[394045565,1763223554155,572.61,0.00041333,120]
[394045566,1763223554410,572.61,0.00041333,120]
[394045567,1763223554681,572.61,0.00041333,120]
[394045568,1763223554952,572.61,0.00041333,120]
[394045569,1763223555225,572.61,0.00041333,120]
[394045570,1763223555508,572.61,0.00041333,120]
[394045571,1763223555762,572.61,0.00041333,120]
[394045572,1763223555996,572.61,0.00041333,120]
[394045573,1763223556241,572.61,0.00041333,120]
[394045574,1763223556564,572.61,0.00041333,120]
[394045575,1763223556760,572.61,0.00041333,120]
[394045576,1763223557211,572.61,0.00041333,120]
[394045577,1763223557264,572.61,0.00041333,120]
[394045578,1763223557511,572.61,0.00041333,120]
[394045579,1763223557780,572.66,0.00041333,120]
[394045580,1763223615238,500.0,0.00041333,120]
[394045581,1763223615473,500.0,0.00041333,120]
[394045582,1763223615750,500.0,0.00041333,120]
[394045583,1763223616239,500.0,0.00041333,120]
[394045584,1763223616588,500.0,0.00041333,120]
[394045585,1763223616830,500.0,0.00041333,120]
[394045586,1763223617106,500.0,0.00041333,120]
[394045587,1763223617366,500.0,0.00041333,120]
[394045588,1763223617597,500.0,0.00041333,120]
[394045589,1763223617855,500.0,0.00041333,120]
[394045590,1763223618300,500.0,0.00041333,120]
[394045591,1763223618378,500.0,0.00041333,120]
[394045592,1763223618571,500.0,0.00041333,120]
[394045593,1763223618818,500.0,0.00041333,120]
[394045594,1763223619079,500.0,0.00041333,120]
[394045595,1763223619322,500.0,0.00041333,120]
[394045596,1763223619647,500.0,0.00041333,120]
[394045597,1763223619968,500.0,0.00041333,120]
[394045598,1763223620214,500.0,0.00041333,120]
[394045599,1763223620476,511.67435537,0.00041333,120]
[394045600,1763223638371,240.14181239,0.00041333,120]
[394045612,1763224144156,150.0,0.00016622,3]
[394045623,1763224231571,-206.26953728,0.00015849,2]
[394045624,1763224231581,-250.0,0.00015867,2]
[394045625,1763224231591,-6002.89,0.00015885,2]
[394045626,1763224231605,-896.35,0.00015949,2]
[394045627,1763224231615,-200.0,0.00016051,2]
[394045628,1763224231624,-543.129,0.00016091,2]
[394045629,1763224231633,-1200.0,0.00016147,2]
[394045630,1763224231642,-195.0,0.00016148,2]
[394045631,1763224231652,-256.30900857,0.00016218,2]
[394045632,1763224231661,-195.0,0.00016255,2]
[394045633,1763224231670,-151.0,0.00016307,2]
[394045634,1763224231680,-300.0,0.00016308,2]
[394045635,1763224231690,-300.0,0.00016308,2]
[394045636,1763224231699,-300.0,0.00016308,2]
[394045637,1763224231709,-500.0,0.00016309,2]
[394045638,1763224231718,-500.0,0.00016309,2]
[394045639,1763224231727,-360.73614548,0.00016309,2]
[394045640,1763224231736,-550.0,0.00016309,2]
[394045641,1763224231746,-463.14209326,0.0001631,2]
[394045642,1763224231757,-652.30130565,0.0001631,2]
[394045643,1763224231769,-480.71,0.0001631,2]
[394045644,1763224231779,-345.51780687,0.0001631,2]
[394045645,1763224231790,-7067.79960002,0.0001631,2]
[394045646,1763224231801,-303.63741467,0.0001631,2]
[394045647,1763224231813,-264.75847164,0.0001631,2]
[394045648,1763224231824,-301.0,0.0001631,2]
[394045649,1763224231835,-5850.0,0.0001631,2]
[394045650,1763224231847,-292.0,0.0001631,2]
[394045651,1763224231859,-556.64674786,0.0001631,2]
[394045652,1763224231872,-508.67861572,0.0001631,2]
[394045653,1763224231883,-139129.50321721,0.0001631,2]
[394045654,1763224231894,-46563.41700993,0.0001631,2]
[394045655,1763224231905,-65492.6402125,0.0001631,2]